bitfinex/quotes_SOLUSD_20241202
["timestamp","ask_amount","ask_price","bid_price","bid_amount"]
[1733124295171,43.29259617,227.39,227.33,23.776884]
[1733124295369,43.29259617,227.42,227.34,43.29259617]
[1733124295579,43.29259617,227.4,227.33,43.29259617]
[1733124295770,43.29259617,227.41,227.34,23.776884]
[1733124296282,43.29259617,227.41,227.36,23.776884]
[1733124296470,43.29259617,227.41,227.35,23.776884]
[1733124297673,43.29259617,227.42,227.35,23.776884]
[1733124297870,43.29259617,227.42,227.36,0.12549]
[1733124298281,43.29259617,227.44,227.37,23.776884]
[1733124298487,43.29259617,227.44,227.37,93.776884]
[1733124299087,43.29259617,227.43,227.37,93.776884]
[1733124299384,43.29259617,227.48,227.35,64.40749617]
[1733124299385,43.29259617,227.4,227.36,23.776884]
[1733124299585,43.29259617,227.42,227.36,23.776884]
[1733124299763,1.09647458,227.47,227.36,23.776884]
[1733124299764,43.29259617,227.41,227.36,23.776884]
[1733124300079,43.29259617,227.4,227.35,23.776884]
[1733124300280,1.09647458,227.47,227.35,23.776884]
[1733124300281,43.29259617,227.43,227.35,67.06948017]
[1733124300864,43.29259617,227.42,227.35,23.776884]
[1733124301275,1.09647458,227.47,227.35,23.776884]
[1733124301276,43.29259617,227.43,227.35,67.06948017]
[1733124301462,43.29259617,227.44,227.38,23.776884]
[1733124301669,43.29259617,227.43,227.36,23.902374]
[1733124302074,1.09646689,227.47,227.36,23.902374]
[1733124302268,43.29259617,227.42,227.36,23.902374]
[1733124302585,43.29259617,227.42,227.36,23.776884]
[1733124302890,43.29259617,227.4,227.34,23.776884]
[1733124303066,1.0964788,227.47,227.34,23.776884]
[1733124303387,43.29259617,227.38,227.32,23.776884]
[1733124303689,43.29259617,227.38,227.27,96.27]
[1733124303690,43.29259617,227.38,227.29,43.29259617]
[1733124304279,1.09653722,227.46,227.32,43.29259617]
[1733124304280,43.29259617,227.4,227.32,43.29259617]
[1733124304485,43.29259617,227.41,227.33,43.29259617]
[1733124304869,43.29259617,227.41,227.35,23.776884]
[1733124305192,43.29259617,227.37,227.28,43.29259617]
[1733124305367,43.29259617,227.34,227.28,43.29259617]
[1733124305570,43.29259617,227.34,227.26,43.29259617]
[1733124305766,43.29259617,227.34,227.26,47.68659617]
[1733124305974,43.29259617,227.34,227.28,43.29259617]
[1733124306271,43.29259617,227.37,227.29,43.29259617]
[1733124306470,43.29259617,227.37,227.3,23.776884]
[1733124306887,43.29259617,227.39,227.32,23.776884]
[1733124307575,26.57166402,227.4,227.33,26.57166402]
[1733124307763,26.57166402,227.4,227.34,23.776884]
[1733124307968,26.57166402,227.42,227.34,50.34854802]
[1733124309075,26.57166402,227.41,227.33,26.57166402]
[1733124309389,26.57166402,227.38,227.34,23.776884]
[1733124309894,26.57166402,227.36,227.32,23.776884]
[1733124310192,1.09662038,227.42,227.32,23.776884]
[1733124310193,26.57166402,227.37,227.32,23.776884]
[1733124310405,26.57166402,227.36,227.32,23.776884]
[1733124310693,26.57166402,227.38,227.31,23.776884]
[1733124310985,26.57166402,227.38,227.29,26.57166402]
[1733124311188,5.0,227.33,227.28,0.12549]
[1733124311396,26.57166402,227.3,227.22,26.57166402]
[1733124311773,26.57166402,227.3,227.23,0.12549]
[1733124311994,26.57166402,227.24,227.17,70.0]
[1733124312174,26.57166402,227.22,227.15,26.57166402]
[1733124312378,26.57166402,227.17,227.1,26.57166402]
[1733124312988,26.57166402,227.17,227.06,70.0]
[1733124312989,26.57166402,227.17,227.08,26.57166402]
[1733124313196,26.57166402,227.15,227.03,70.0]
[1733124313393,26.57166402,227.13,227.05,26.57166402]
[1733124313588,26.57166402,227.17,227.11,26.57166402]
[1733124313903,5.0,227.18,227.11,26.57166402]
[1733124314483,5.0,227.18,227.12,0.12549]
[1733124314981,5.0,227.18,227.12,0.25098]
[1733124315270,26.57166402,227.23,227.18,0.12549]
[1733124315468,26.57166402,227.27,227.21,0.25098]
[1733124315670,5.0,227.28,227.23,0.37647]
[1733124316091,26.57166402,227.29,227.23,0.37647]
[1733124316274,5.0,227.3,227.23,0.37647]
[1733124316275,5.0,227.28,227.25,0.37647]
[1733124316483,31.57166402,227.28,227.25,0.37647]
[1733124316684,26.57166402,227.28,227.25,0.37647]
[1733124316874,26.57166402,227.29,227.25,0.37647]
[1733124317079,26.57166402,227.3,227.25,0.37647]
[1733124317276,26.57166402,227.27,227.2,70.0]
[1733124317596,26.57166402,227.27,227.21,24.027864]
[1733124317771,26.57166402,227.31,227.24,0.12549]
[1733124317978,26.57166402,227.33,227.25,50.72501802]
[1733124318174,5.0,227.35,227.25,50.72501802]
[1733124318175,5.0,227.36,227.27,0.12549]
[1733124318372,13.87646005,227.51,227.35,0.12549]
[1733124318373,26.57166402,227.4,227.35,0.12549]
[1733124318605,5.0,227.39,227.35,0.25098]
[1733124318773,6.09658411,227.47,227.39,0.25098]
[1733124318980,26.57166402,227.48,227.42,0.25098]
[1733124319280,26.57166402,227.44,227.42,0.25098]
[1733124319586,26.57166402,227.44,227.37,26.57166402]
[1733124319587,5.0,227.49,227.37,0.25098]
[1733124319892,26.57166402,227.46,227.4,0.12549]
[1733124320599,26.57166402,227.45,227.4,0.12549]
[1733124320796,26.57166402,227.46,227.4,0.12549]
[1733124321005,31.57166402,227.5,227.44,24.153354]
[1733124321311,6.2197,227.66,227.5,24.153354]
[1733124321312,31.57166402,227.58,227.5,24.153354]
[1733124321470,26.57166402,227.59,227.53,0.37647]
[1733124321672,5.0,227.64,227.53,0.37647]
[1733124322000,5.0,227.64,227.42,10.9928]
[1733124322001,5.0,227.69,227.58,24.153354]
[1733124322178,5.0,227.67,227.58,24.153354]
[1733124322376,5.0,227.69,227.58,24.153354]
[1733124322575,43.09652441,227.69,227.62,67.24987841]
[1733124322913,43.09652441,227.72,227.64,43.22201441]
[1733124323081,43.09652441,227.72,227.66,0.12549]
[1733124323586,5.0,227.74,227.68,0.12549]
[1733124323901,43.61404341,227.75,227.7,0.12549]
[1733124324288,43.61404341,227.75,227.72,0.25098]
[1733124324485,48.61404341,227.75,227.71,23.776884]
[1733124324799,0.517519,227.75,227.7,0.25098]
[1733124324995,5.517519,227.75,227.7,0.25098]
[1733124325296,0.517519,227.75,227.74,67.24987841]
[1733124325486,0.517519,227.75,227.74,24.153354]
[1733124325685,0.517519,227.75,227.73,43.22201441]
[1733124325888,0.517519,227.75,227.74,43.22201441]
[1733124326306,0.517519,227.75,227.74,43.34750441]
[1733124327202,0.517519,227.75,227.74,67.24987841]
[1733124328602,0.517519,227.75,227.74,24.153354]
[1733124328802,0.517519,227.75,227.74,67.24987841]
[1733124329186,5.0,227.86,227.81,0.12549]
[1733124329391,48.09652441,227.87,227.81,0.12549]
[1733124329392,5.0,227.84,227.81,0.12549]
[1733124329593,43.09652441,227.87,227.81,0.12549]
[1733124329914,10.0,227.89,227.76,70.0]
[1733124329915,5.0,227.89,227.84,0.12549]
[1733124330101,10.0,227.89,227.84,0.12549]
[1733124330305,1.61187533,227.97,227.74,35.004864]
[1733124330306,43.09652441,227.94,227.87,66.99889841]
[1733124330520,5.0,227.93,227.91,0.12549]
[1733124330699,5.517519,227.97,227.91,43.22201441]
[1733124330894,5.517519,227.97,227.85,70.0]
[1733124330895,10.517519,227.97,227.85,70.0]
[1733124331081,10.517519,227.97,227.86,24.027864]
[1733124331082,5.0,227.92,227.86,24.027864]
[1733124331409,5.0,227.88,227.82,70.0]
[1733124331703,5.0,227.87,227.84,0.12549]
[1733124332099,5.0,227.87,227.82,0.12549]
[1733124332100,5.0,227.83,227.78,23.776884]
[1733124332407,5.0,227.83,227.77,43.09652441]
[1733124332584,10.0,227.89,227.83,0.12549]
[1733124332789,5.0,227.89,227.84,43.09652441]
[1733124332987,5.0,227.89,227.85,0.12549]
[1733124333192,5.0,227.89,227.87,43.09652441]
[1733124333410,5.0,227.89,227.86,0.12549]
[1733124333610,5.0,227.85,227.82,43.09652441]
[1733124333785,5.0,227.85,227.83,0.12549]
[1733124333987,48.09652441,227.85,227.79,0.12549]
[1733124334220,43.09652441,227.83,227.78,0.12549]
[1733124334509,5.0,227.82,227.78,43.09652441]
[1733124334723,5.0,227.82,227.8,43.09652441]
[1733124334912,5.0,227.79,227.72,16.2528]
[1733124335098,5.0,227.79,227.72,59.34932441]
[1733124335489,10.0,227.84,227.79,0.12549]
[1733124335817,5.0,227.87,227.81,0.12549]
[1733124336006,5.0,227.86,227.83,0.12549]
[1733124336310,5.0,227.84,227.83,0.12549]
[1733124336507,5.0,227.84,227.82,0.12549]
[1733124336809,5.0,227.86,227.82,43.22201441]
[1733124337019,5.0,227.86,227.84,0.12549]
[1733124337523,5.0,227.88,227.85,0.12549]
[1733124337815,5.0,227.95,227.87,43.34750441]
[1733124338010,5.0,227.92,227.9,43.09652441]
[1733124338314,5.0,227.89,227.82,23.902374]
[1733124338511,5.0,227.89,227.83,0.12549]
[1733124338689,48.09652441,227.89,227.83,4.64498]
[1733124338889,5.0,227.89,227.83,4.64498]
[1733124339091,5.0,227.89,227.83,47.74150441]
[1733124339313,5.0,227.89,227.84,24.027864]
[1733124339509,5.0,227.89,227.85,0.25098]
[1733124340206,5.0,227.87,227.81,24.027864]
[1733124340524,53.09652441,227.87,227.79,43.09652441]
[1733124340809,5.0,227.87,227.81,0.12549]
[1733124341011,5.0,227.87,227.83,43.09652441]
[1733124341195,5.0,227.87,227.84,0.12549]
[1733124341611,5.0,227.9,227.82,113.22201441]
[1733124341788,48.09652441,227.9,227.82,113.22201441]
[1733124341997,48.09652441,227.9,227.84,0.12549]
[1733124342194,5.0,227.88,227.84,0.12549]
[1733124342416,43.09652441,227.85,227.76,70.0]
[1733124342620,43.09652441,227.84,227.77,0.12549]
[1733124342804,43.09652441,227.84,227.76,113.09652441]
[1733124342805,48.09652441,227.84,227.76,113.09652441]
[1733124343004,5.0,227.84,227.79,43.09652441]
[1733124343397,10.0,227.89,227.8,70.0]
[1733124343599,5.0,227.89,227.84,43.22201441]
[1733124343829,5.0,227.89,227.84,0.12549]
[1733124344125,5.0,227.87,227.84,0.12549]
[1733124344528,5.0,227.85,227.82,0.37647]
[1733124344826,5.0,227.85,227.82,0.12549]
[1733124345006,53.09652441,227.87,227.82,0.12549]
[1733124345212,5.0,227.85,227.81,0.12549]
[1733124345799,5.0,227.83,227.8,0.12549]
[1733124346305,43.09652441,228.14,227.71,10.9788]
[1733124346306,5.0,227.82,227.77,43.09652441]
[1733124346509,5.0,227.79,227.75,43.09652441]
[1733124346720,48.09652441,227.81,227.73,113.09652441]
[1733124346916,5.0,227.76,227.7,70.0]
[1733124347114,5.0,227.76,227.71,43.09652441]
[1733124347624,48.09652441,227.73,227.66,70.0]
[1733124347825,5.0,227.68,227.62,6.5449]
[1733124348131,5.0,227.7,227.64,43.09652441]
[1733124348424,5.0,227.66,227.6,43.09652441]
[1733124348621,48.09652441,227.66,227.59,113.09652441]
[1733124348824,5.0,227.64,227.59,43.09652441]
[1733124349034,5.0,227.64,227.6,43.09652441]
[1733124349199,5.0,227.7,227.64,0.12549]
[1733124349402,5.0,227.7,227.65,43.09652441]
[1733124349604,5.0,227.7,227.66,43.09652441]
[1733124349911,5.0,227.7,227.67,43.22201441]
[1733124350222,5.0,227.7,227.67,0.12549]
[1733124350806,5.0,227.72,227.68,0.12549]
[1733124351039,5.0,227.75,227.67,43.34750441]
[1733124351040,5.0,227.73,227.72,0.12549]
[1733124351329,5.0,227.71,227.68,43.09652441]
[1733124351529,5.0,227.71,227.7,0.12549]
[1733124351712,5.0,227.73,227.7,0.12549]
[1733124352231,5.0,227.71,227.69,0.12549]
[1733124352441,5.0,227.73,227.69,43.34750441]
[1733124352610,48.09652441,227.77,227.7,0.12549]
[1733124352934,5.0,227.73,227.71,0.12549]
[1733124353539,5.0,227.73,227.7,0.25098]
[1733124354026,5.0,227.73,227.72,24.027864]
[1733124354235,5.0,227.73,227.72,67.12438841]
[1733124354610,5.0,227.73,227.72,24.027864]
[1733124355016,10.0,227.77,227.72,43.34750441]
[1733124355220,5.0,227.73,227.72,0.12549]
[1733124355752,5.0,227.76,227.72,0.12549]
[1733124356036,5.0,227.73,227.72,0.12549]
[1733124356736,5.0,227.73,227.71,0.12549]
[1733124357423,5.0,227.71,227.65,43.09652441]
[1733124357737,5.0,227.71,227.65,0.12549]
[1733124358621,5.0,227.71,227.66,0.12549]
[1733124359015,5.0,227.71,227.67,0.12549]
[1733124359736,31.49069783,227.69,227.62,20.0]
[1733124359919,31.49069783,227.69,227.61,26.49069783]
[1733124360230,5.0,227.65,227.59,26.49069783]
[1733124360439,5.0,227.65,227.59,96.49069783]
[1733124360617,31.49069783,227.68,227.59,96.49069783]
[1733124360940,5.0,227.7,227.67,0.12549]
[1733124361130,5.0,227.71,227.67,26.61618783]
[1733124361332,5.0,227.72,227.69,26.61618783]
[1733124361532,5.0,227.75,227.59,26.49069783]
[1733124361533,5.0,227.73,227.72,0.12549]
[1733124361736,5.0,227.77,227.74,0.12549]
[1733124361946,31.49069783,227.81,227.74,24.027864]
[1733124362120,5.0,227.81,227.75,0.12549]
[1733124362319,5.0,227.81,227.77,0.12549]
[1733124362821,31.49069783,227.84,227.76,26.74167783]
[1733124363028,5.0,227.86,227.8,26.61618783]
[1733124363327,9.85,227.94,227.8,26.61618783]
[1733124363328,5.0,227.82,227.8,0.12549]
[1733124363642,5.0,227.82,227.78,0.12549]
[1733124363951,5.0,227.78,227.71,24.027864]
[1733124364237,5.0,227.74,227.66,15.7046]
[1733124364446,43.01394606,227.7,227.63,6.3787]
[1733124364635,43.01394606,227.7,227.61,10.9833]
[1733124364636,43.01394606,227.68,227.61,53.99724606]
[1733124364947,5.0,227.7,227.62,43.01394606]
[1733124365134,5.0,227.68,227.62,43.01394606]
[1733124365444,48.01394606,227.68,227.6,113.01394606]
[1733124365645,48.01394606,227.64,227.57,6.6449]
[1733124365822,5.0,227.66,227.6,43.01394606]
[1733124366146,48.01394606,227.7,227.63,0.12549]
[1733124366646,5.0,227.57,227.46,70.0]
[1733124366852,48.01394606,227.55,227.48,43.01394606]
[1733124367334,48.01394606,227.55,227.49,0.12549]
[1733124367739,48.01394606,227.55,227.46,43.01394606]
[1733124367937,48.01394606,227.53,227.44,43.01394606]
[1733124368413,48.01394606,227.53,227.45,0.12549]
[1733124368617,43.01394606,227.51,227.44,43.01394606]
[1733124368931,43.01394606,227.45,227.38,43.01394606]
[1733124369138,4.39151382,227.58,227.34,70.0]
[1733124369139,43.01394606,227.41,227.34,43.01394606]
[1733124369321,5.0,227.4,227.32,43.01394606]
[1733124369649,5.0,227.42,227.34,113.01394606]
[1733124370135,5.0,227.4,227.34,43.01394606]
[1733124370339,5.0,227.4,227.33,70.0]
[1733124370720,5.0,227.4,227.33,0.12549]
[1733124371118,5.0,227.4,227.35,0.12549]
[1733124371321,5.0,227.4,227.34,43.01394606]
[1733124371527,5.0,227.4,227.35,23.902374]
[1733124371949,48.01394606,227.43,227.37,0.12549]
[1733124372152,48.01394606,227.43,227.38,0.12549]
[1733124372342,43.01394606,227.41,227.38,0.12549]
[1733124372646,48.01394606,227.43,227.38,0.12549]
[1733124373849,43.01394606,227.41,227.38,0.12549]
[1733124374047,5.0,227.4,227.38,0.12549]
[1733124374248,5.0,227.4,227.34,0.25098]
[1733124374545,5.0,227.42,227.36,43.01394606]
[1733124374759,5.0,227.42,227.37,0.25098]
[1733124377048,5.0,227.44,227.38,0.12549]
[1733124377262,5.0,227.5,227.43,43.26492606]
[1733124377550,5.0,227.53,227.47,0.12549]
[1733124377773,5.0,227.53,227.49,0.12549]
[1733124377931,5.0,227.51,227.43,0.12549]
[1733124378131,5.0,227.49,227.42,0.25098]
[1733124379030,48.01394606,227.49,227.42,0.25098]
[1733124379248,43.01394606,227.48,227.42,0.25098]
[1733124379644,43.01394606,227.48,227.42,4.64498]
[1733124381254,43.01394606,227.52,227.46,0.12549]
[1733124381557,5.0,227.53,227.48,47.53343606]
[1733124382570,5.0,227.58,227.53,0.12549]
[1733124382864,5.0,227.6,227.56,0.12549]
[1733124383060,5.0,227.6,227.56,0.25098]
[1733124383263,5.0,227.58,227.55,0.12549]
[1733124383564,5.0,227.56,227.55,0.12549]
[1733124384127,5.0,227.56,227.53,0.12549]
[1733124384350,5.0,227.6,227.55,0.12549]
[1733124384557,5.0,227.64,227.59,0.12549]
[1733124384855,5.0,227.64,227.59,26.65192621]
[1733124385355,5.0,227.68,227.63,0.12549]
[1733124385529,5.0,227.68,227.65,0.12549]
[1733124385729,5.0,227.7,227.65,43.18232166]
[1733124386034,46.34913166,227.81,227.6,70.0]
[1733124386035,5.0,227.73,227.68,0.25098]
[1733124386236,5.0,227.76,227.71,43.05683166]
[1733124386446,5.0,227.76,227.72,0.12549]
[1733124386634,5.0,227.8,227.74,43.18232166]
[1733124386829,5.0,227.78,227.74,0.12549]
[1733124387261,5.0,227.8,227.75,0.12549]
[1733124387758,5.0,227.8,227.74,0.12549]
[1733124388258,5.0,227.8,227.76,0.12549]
[1733124388566,5.0,227.82,227.8,0.12549]
[1733124388745,5.0,227.82,227.77,43.05683166]
[1733124388941,5.0,227.79,227.76,43.05683166]
[1733124389143,5.0,227.79,227.77,43.05683166]
[1733124389553,5.0,227.81,227.77,43.05683166]
[1733124389757,5.0,227.79,227.77,43.05683166]
[1733124390057,5.0,227.81,227.77,43.05683166]
[1733124390250,5.0,227.79,227.77,43.05683166]
[1733124390453,5.0,227.77,227.73,43.05683166]
[1733124390654,5.0,227.74,227.72,43.05683166]
[1733124390856,5.0,227.74,227.7,43.05683166]
[1733124391063,5.0,227.73,227.7,43.05683166]
[1733124391264,5.0,227.77,227.72,43.05683166]
[1733124391439,5.0,227.74,227.72,43.05683166]
[1733124391637,5.0,227.76,227.73,43.05683166]
[1733124391838,43.05683166,227.8,227.74,0.12549]
[1733124391839,5.0,227.78,227.74,0.12549]
[1733124392135,5.0,227.78,227.74,43.18232166]
[1733124392554,5.0,227.78,227.74,0.12549]
[1733124393461,5.0,227.78,227.74,43.18232166]
[1733124393638,5.0,227.78,227.75,0.12549]
[1733124393840,5.0,227.8,227.77,0.12549]
[1733124394139,5.0,227.8,227.77,43.18232166]
[1733124394340,5.0,227.8,227.77,0.12549]
[1733124394645,5.0,227.82,227.78,23.902374]
[1733124395047,5.0,227.82,227.79,43.05683166]
[1733124395444,5.0,227.85,227.81,43.18232166]
[1733124395771,5.0,227.87,227.85,0.12549]
[1733124395967,5.0,227.87,227.85,43.18232166]
[1733124396463,5.0,227.87,227.85,43.05683166]
[1733124396756,5.0,227.87,227.83,43.18232166]
[1733124397666,5.0,227.87,227.83,23.902374]
[1733124397833,5.0,227.83,227.78,43.05683166]
[1733124398034,5.0,227.83,227.79,24.027864]
[1733124398259,5.0,227.83,227.8,0.12549]
[1733124398457,43.05683166,227.85,227.78,23.776884]
[1733124398458,5.0,227.81,227.78,23.776884]
[1733124398644,5.0,227.81,227.7,49.47713166]
[1733124398645,5.0,227.78,227.73,43.05683166]
[1733124399057,5.0,227.76,227.73,43.05683166]
[1733124399261,5.0,227.76,227.75,0.12549]
[1733124399460,5.0,227.78,227.75,43.05683166]
[1733124400059,5.0,227.83,227.78,0.12549]
[1733124400369,5.0,227.85,227.82,0.12549]
[1733124400569,5.0,227.85,227.82,43.18232166]
[1733124401673,5.0,227.85,227.84,43.18232166]
[1733124401961,5.0,227.88,227.86,0.12549]
[1733124402162,5.0,227.86,227.84,43.05683166]
[1733124402359,5.0,227.86,227.83,43.05683166]
[1733124402563,5.0,227.77,227.72,70.0]
[1733124402748,5.0,227.77,227.67,10.9807]
[1733124402952,5.0,227.72,227.65,70.0]
[1733124403141,5.0,227.7,227.64,23.4966]
[1733124403646,5.0,227.72,227.66,0.12549]
[1733124404038,5.0,227.72,227.68,43.05683166]
[1733124404442,5.0,227.74,227.7,43.05683166]
[1733124404756,5.0,227.74,227.71,0.12549]
[1733124404964,5.0,227.74,227.71,43.18232166]
[1733124406055,5.0,227.76,227.73,0.12549]
[1733124406368,5.0,227.78,227.75,43.05683166]
[1733124406580,5.0,227.75,227.74,43.18232166]
[1733124406768,5.0,227.75,227.74,0.12549]
[1733124408268,5.0,227.77,227.74,0.12549]
[1733124408458,5.0,227.77,227.75,43.18232166]
[1733124408658,5.0,227.77,227.75,0.12549]
[1733124408863,5.0,227.81,227.77,0.25098]
[1733124409060,5.0,227.83,227.81,0.12549]
[1733124409363,5.0,227.85,227.81,66.95920566]
[1733124409668,5.0,227.87,227.85,24.027864]
[1733124409872,5.0,227.87,227.86,43.18232166]
[1733124410175,5.0,227.87,227.86,0.12549]
[1733124410378,5.0,227.89,227.87,0.12549]
[1733124410576,5.0,227.91,227.89,0.12549]
[1733124410873,5.0,227.93,227.9,43.05683166]
[1733124411969,5.0,227.87,227.82,43.05683166]
[1733124412261,5.0,227.87,227.83,24.027864]
[1733124412578,5.0,227.87,227.84,0.25098]
[1733124412965,5.0,227.85,227.81,43.05683166]
[1733124413149,5.0,227.85,227.8,43.05683166]
[1733124413352,5.0,227.85,227.81,0.12549]
[1733124413562,5.0,227.91,227.85,0.25098]
[1733124413755,5.0,227.91,227.86,43.05683166]
[1733124414062,5.0,227.93,227.88,43.18232166]
[1733124414261,5.0,227.91,227.88,43.18232166]
[1733124414482,5.0,227.89,227.87,43.05683166]
[1733124414656,5.0,227.89,227.87,23.776884]
[1733124414975,5.0,227.91,227.88,43.18232166]
[1733124415182,5.0,227.91,227.9,0.12549]
[1733124415488,43.57435066,227.97,227.91,0.12549]
[1733124415489,5.0,227.93,227.91,0.12549]
[1733124415655,5.0,227.95,227.93,23.902374]
[1733124415855,5.0,227.95,227.94,43.18232166]
[1733124416554,5.0,227.93,227.92,43.05683166]
[1733124416873,5.0,227.95,227.93,0.12549]
[1733124417080,5.0,227.93,227.83,70.0]
[1733124417264,5.0,227.87,227.84,43.05683166]
[1733124418272,5.0,227.87,227.85,0.12549]
[1733124418579,5.0,227.87,227.84,47.45083166]
[1733124418787,5.0,227.87,227.86,43.05683166]
[1733124418961,5.0,227.87,227.86,43.18232166]
[1733124419163,5.0,227.89,227.86,43.18232166]
[1733124419566,5.0,227.89,227.87,0.12549]
[1733124419770,5.0,227.89,227.88,43.18232166]
[1733124420277,5.0,227.91,227.89,24.027864]
[1733124420583,43.57435066,227.97,227.89,24.027864]
[1733124420584,5.0,227.93,227.91,0.12549]
[1733124420878,5.0,227.93,227.92,0.12549]
[1733124421079,5.0,227.93,227.87,4.394]
[1733124421080,5.0,227.88,227.87,43.05683166]
[1733124421387,5.0,227.86,227.82,113.05683166]
[1733124421570,5.0,227.88,227.82,70.0]
[1733124421888,5.0,227.86,227.83,0.12549]
[1733124422190,5.0,227.86,227.85,0.12549]
[1733124424796,5.0,227.89,227.85,0.12549]
[1733124424984,5.0,227.91,227.87,0.12549]
[1733124425167,5.0,227.93,227.87,0.12549]
[1733124425770,5.0,227.93,227.92,0.12549]
[1733124426052,5.0,227.91,227.88,43.05683166]
[1733124426241,5.0,227.89,227.87,23.776884]
[1733124426514,5.0,227.87,227.86,0.12549]
[1733124427388,5.0,227.87,227.85,0.12549]
[1733124428081,5.0,227.87,227.85,23.902374]
[1733124428285,5.0,227.85,227.83,0.25098]
[1733124428492,5.0,227.85,227.83,24.027864]
[1733124428685,5.0,227.85,227.84,0.12549]
[1733124429117,0.517519,227.97,227.84,0.12549]
[1733124429118,5.0,227.87,227.84,43.18232166]
[1733124429494,5.0,227.85,227.84,67.08469566]
[1733124430589,5.0,227.85,227.84,24.027864]
[1733124430788,5.0,227.85,227.84,67.08469566]
[1733124431197,5.0,227.87,227.84,67.08469566]
[1733124431587,5.0,227.85,227.83,43.05683166]
[1733124431801,5.0,227.85,227.81,43.05683166]
[1733124431969,5.0,227.85,227.83,0.12549]
[1733124432369,5.0,227.85,227.83,43.18232166]
[1733124432786,5.0,227.85,227.84,43.18232166]
[1733124432981,5.0,227.89,227.86,0.12549]
[1733124433293,5.0,227.89,227.88,43.18232166]
[1733124433588,5.0,227.89,227.88,0.12549]
[1733124434050,5.0,227.86,227.82,26.44432512]
[1733124434169,5.0,227.86,227.83,23.902374]
[1733124434378,5.0,227.84,227.83,23.776884]
[1733124434579,5.0,227.81,227.79,26.44432512]
[1733124435174,5.0,227.83,227.8,26.44432512]
[1733124435375,5.0,227.83,227.81,26.44432512]
[1733124435703,5.0,227.87,227.82,26.56981512]
[1733124435994,5.0,227.88,227.87,0.12549]
[1733124436498,5.0,227.88,227.86,24.153354]
[1733124437070,5.0,227.88,227.87,50.47218912]
[1733124437303,5.0,227.9,227.88,0.12549]
[1733124437993,5.0,227.86,227.84,26.56981512]
[1733124438196,5.0,227.9,227.86,0.12549]
[1733124438530,0.517519,227.97,227.86,0.12549]
[1733124438531,5.0,227.95,227.9,24.153354]
[1733124438688,5.517519,227.97,227.95,0.12549]
[1733124439228,5.517519,227.97,227.96,50.47218912]
[1733124439977,5.517519,227.97,227.95,26.44432512]
[1733124440210,5.0,227.96,227.95,50.34669912]
[1733124440687,5.0,227.96,227.95,50.47218912]
[1733124441304,5.0,227.96,227.95,24.027864]
[1733124441617,5.0,227.94,227.92,26.44432512]
[1733124441781,0.517519,227.97,227.91,23.776884]
[1733124441782,5.0,227.92,227.91,23.776884]
[1733124442134,5.0,227.86,227.83,26.44432512]
[1733124442807,5.0,227.86,227.84,0.12549]
[1733124443149,5.0,227.86,227.83,26.44432512]
[1733124443302,5.0,227.86,227.85,26.56981512]
[1733124443486,5.0,227.86,227.85,26.44432512]
[1733124443687,5.0,227.88,227.85,26.56981512]
[1733124443885,5.0,227.9,227.88,0.12549]
[1733124444092,5.0,227.88,227.81,70.0]
[1733124444285,5.0,227.9,227.87,50.22120912]
[1733124444494,5.0,227.92,227.88,26.56981512]
[1733124444713,5.0,227.92,227.91,50.47218912]
[1733124445427,5.0,227.94,227.92,0.12549]